bitfinex-derivatives/quotes_BTCF0:USTF0_20250504
["timestamp","ask_amount","ask_price","bid_price","bid_amount"]
[1746350928183,1.0900697,95512.0,95511.0,0.0743]
[1746350928581,0.9900697,95512.0,95511.0,0.0743]
[1746350930991,1.0900697,95512.0,95511.0,0.0743]
[1746350931789,0.9900697,95512.0,95511.0,0.0743]
[1746350931980,1.4508697,95512.0,95511.0,0.0743]
[1746350932180,1.3508697,95512.0,95511.0,0.0743]
[1746350932388,1.4508697,95512.0,95511.0,0.0743]
[1746350932790,1.3508697,95512.0,95511.0,0.0743]
[1746350933194,1.298528,95512.0,95511.0,0.0743]
[1746350934280,1.158528,95512.0,95511.0,0.0743]
[1746350934482,1.168528,95512.0,95511.0,0.0743]
[1746350935291,1.268528,95512.0,95511.0,0.0743]
[1746350935493,1.168528,95512.0,95511.0,0.0743]
[1746350935788,1.188528,95512.0,95511.0,0.0743]
[1746350938887,1.188528,95512.0,95511.0,0.03866438]
[1746350939093,1.262228,95512.0,95511.0,0.03866438]
[1746350940295,1.345828,95512.0,95511.0,0.03866438]
[1746350945404,1.445828,95512.0,95511.0,0.03866438]
[1746350945697,1.345828,95512.0,95511.0,0.03866438]
[1746350947300,1.345828,95512.0,95511.0,0.15666438]
[1746350948195,1.345828,95512.0,95511.0,0.03866438]
[1746350948497,1.398128,95512.0,95511.0,0.03866438]
[1746350948689,1.345828,95512.0,95511.0,0.03866438]
[1746350948897,1.56412,95512.0,95474.0,0.3608]
[1746350949094,1.56412,95512.0,95497.0,0.0828]
[1746350949095,0.209397,95498.0,95497.0,0.0828]
[1746350949301,0.768557,95498.0,95497.0,0.0828]
[1746350950108,0.728557,95498.0,95497.0,0.2008]
[1746350951101,0.548557,95498.0,95497.0,0.2008]
[1746350954394,0.558557,95498.0,95497.0,0.2008]
[1746350955103,0.558557,95498.0,95497.0,0.2802]
[1746350957904,0.2093992,95497.0,95496.0,0.03669301]
[1746350958105,0.7321,95497.0,95493.0,0.0157]
[1746350958403,0.2094058,95494.0,95493.0,0.0157]
[1746350958603,0.2094167,95489.0,95488.0,0.0859]
[1746350958799,0.4694167,95489.0,95488.0,0.2459]
[1746350959208,0.4694167,95489.0,95488.0,0.2039]
[1746350959598,0.4694167,95489.0,95488.0,0.05505659]
[1746350960406,0.4394167,95489.0,95488.0,0.05505659]
[1746350961203,0.4394167,95489.0,95488.0,0.22605659]
[1746350961696,0.4494167,95489.0,95488.0,0.22605659]
[1746350962706,0.4494167,95489.0,95488.0,0.30545659]
[1746350963602,0.23,95489.0,95488.0,0.67487549]
[1746350963804,0.069,95499.0,95488.0,0.59545659]
[1746350964108,0.11,95499.0,95498.0,0.209397]
[1746350964404,0.3608,95510.0,95508.0,0.2093751]
[1746350964612,0.18655667,95509.0,95508.0,0.3693751]
[1746350965201,0.18655667,95509.0,95508.0,0.6512751]
[1746350965599,0.18655667,95509.0,95508.0,0.7812751]
[1746350967509,0.08,95509.0,95508.0,0.6512751]
[1746350967711,0.08,95509.0,95508.0,0.7812751]
[1746350967900,0.069,95515.0,95514.0,0.2093619]
[1746350968208,0.069,95515.0,95514.0,0.4673619]
[1746350968910,0.069,95515.0,95514.0,0.6276619]
[1746350970914,0.069,95515.0,95514.0,0.7576619]
[1746350972615,0.09058891,95524.0,95521.0,0.2093466]
[1746350972810,0.7698,95522.0,95521.0,0.3493466]
[1746350973008,0.7698,95522.0,95521.0,0.2093466]
[1746350973208,0.7698,95522.0,95521.0,0.3273466]
[1746350973407,0.7698,95522.0,95521.0,0.4905466]
[1746350977325,0.8532,95522.0,95521.0,0.4905466]
[1746350978017,0.8532,95522.0,95521.0,0.2812]
[1746350978223,1.1525444,95522.0,95521.0,0.1964]
[1746350978420,1.0625444,95522.0,95521.0,0.1964]
[1746350978616,0.8532,95522.0,95521.0,0.4057466]
[1746350979012,0.8532,95522.0,95521.0,0.1964]
[1746350979217,1.0625444,95522.0,95521.0,0.1964]
[1746350979517,0.8532,95522.0,95521.0,0.4057466]
[1746350980532,1.0625444,95522.0,95521.0,0.1964]
[1746350981026,1.1416444,95522.0,95521.0,0.1964]
[1746350983926,0.7808444,95522.0,95521.0,0.1964]
[1746350985636,0.5715,95522.0,95521.0,0.4057466]
[1746350986239,0.7808444,95522.0,95521.0,0.4057466]
[1746350986434,0.4924,95522.0,95521.0,0.5257466]
[1746350986829,0.4924,95522.0,95521.0,0.4057466]
[1746350989944,0.4924,95522.0,95521.0,0.5257466]
[1746350990635,0.4924,95522.0,95521.0,0.4057466]
[1746350995832,0.4924,95522.0,95521.0,0.5357466]
[1746351001449,0.4924,95522.0,95521.0,0.4057466]
[1746351002232,0.4924,95522.0,95521.0,0.1964]
[1746351002441,0.4924,95522.0,95521.0,0.4057466]
[1746351005044,0.4924,95522.0,95521.0,0.118]
[1746351005242,0.7217444,95522.0,95521.0,0.118]
[1746351005443,0.7217444,95522.0,95521.0,0.3273466]
[1746351005745,0.5124,95522.0,95521.0,0.3273466]
[1746351007450,0.4924,95522.0,95521.0,0.3273466]
[1746351010043,0.4924,95522.0,95521.0,0.118]
[1746351010253,0.7017444,95522.0,95521.0,0.118]
[1746351010445,0.7927444,95522.0,95521.0,0.118]
[1746351010751,0.7927444,95522.0,95521.0,0.3273466]
[1746351010941,0.5834,95522.0,95521.0,0.3273466]
[1746351011552,0.7927444,95522.0,95521.0,0.118]
[1746351012246,0.7923044,95522.0,95521.0,0.118]
[1746351014855,0.8423044,95522.0,95521.0,0.118]
[1746351015055,0.8323044,95522.0,95521.0,0.118]
[1746351019545,0.8523044,95522.0,95521.0,0.118]
[1746351024062,0.8323044,95522.0,95521.0,0.118]
[1746351027054,0.8023044,95522.0,95521.0,0.118]
[1746351029868,0.8323044,95522.0,95521.0,0.118]
[1746351031155,0.2093466,95521.0,95520.0,0.0848]
[1746351031359,0.6886466,95521.0,95520.0,0.0848]
[1746351031558,0.8722466,95521.0,95520.0,0.0848]
[1746351036272,0.6937466,95521.0,95520.0,0.0848]
[1746351036569,0.7899466,95521.0,95520.0,0.0848]
[1746351037275,0.7881466,95521.0,95520.0,0.0848]
[1746351038176,0.7881466,95521.0,95520.0,0.2028]
[1746351041279,0.7381466,95521.0,95520.0,0.2028]
[1746351045090,0.7381466,95521.0,95520.0,0.0848]
[1746351045492,0.8063466,95521.0,95520.0,0.0848]
[1746351046095,0.8063466,95521.0,95520.0,0.2028]
[1746351050895,1.1671466,95521.0,95520.0,0.2028]
[1746351056400,0.8063466,95521.0,95520.0,0.2028]
[1746351056599,1.1671466,95521.0,95520.0,0.2028]
[1746351057106,0.8063466,95521.0,95520.0,0.2028]
[1746351057308,1.1671466,95521.0,95520.0,0.2028]
[1746351061609,1.2171466,95521.0,95520.0,0.2028]
[1746351062599,0.8563466,95521.0,95520.0,0.2028]
[1746351062800,1.2171466,95521.0,95520.0,0.2028]
[1746351063308,1.3171466,95521.0,95520.0,0.2028]
[1746351063495,1.2233466,95521.0,95520.0,0.15130813]
[1746351063700,0.2093882,95502.0,95494.0,0.3608]
[1746351063900,0.4893882,95502.0,95501.0,0.18974768]
[1746351064101,0.4893882,95502.0,95501.0,0.30774768]
[1746351064297,0.4893882,95502.0,95501.0,0.11957083]
[1746351064511,0.5807882,95502.0,95501.0,0.11957083]
[1746351064814,0.6724882,95502.0,95501.0,0.11957083]
[1746351065005,0.8224882,95502.0,95501.0,0.11957083]
[1746351067012,0.8224882,95502.0,95483.0,0.0523572]
[1746351067013,0.0523557,95487.0,95480.0,0.21889771]
[1746351067214,0.0523557,95487.0,95477.0,0.00157128]
[1746351067215,0.2094409,95478.0,95477.0,0.00157128]
[1746351067421,0.2094584,95470.0,95469.0,0.1819]
[1746351067617,0.7872584,95470.0,95469.0,0.3419]
[1746351068108,0.7872584,95470.0,95469.0,0.4599]
[1746351068417,0.05,95470.0,95469.0,0.5899]
[1746351068615,0.05,95470.0,95469.0,0.8517255]
[1746351068805,0.12342265,95480.0,95477.0,0.2094431]
[1746351069107,0.06,95478.0,95477.0,0.4674431]
[1746351069308,0.06804645,95478.0,95477.0,0.4674431]
[1746351069712,0.06804645,95478.0,95477.0,0.5649431]
[1746351070112,0.00804645,95478.0,95477.0,1.0557431]
[1746351070307,0.1,95478.0,95477.0,1.0557431]
[1746351070508,0.1,95478.0,95477.0,0.9257431]
[1746351071115,0.1,95478.0,95477.0,1.0557431]
[1746351072817,0.2764256,95485.0,95484.0,0.2094277]
[1746351073017,0.3664256,95485.0,95484.0,0.3694277]
[1746351073221,0.3664256,95485.0,95484.0,0.4874277]
[1746351074012,0.157,95485.0,95484.0,0.4874277]
[1746351075712,0.3664255,95485.0,95484.0,0.278]
[1746351075911,0.5964255,95485.0,95484.0,0.278]
[1746351076522,0.6950255,95485.0,95484.0,0.278]
[1746351076714,0.6950255,95485.0,95484.0,0.118]
[1746351077822,0.5964255,95485.0,95484.0,0.118]
[1746351078016,0.5964255,95485.0,95484.0,0.248]
[1746351078518,0.6886255,95485.0,95484.0,0.248]
[1746351079016,0.7486255,95485.0,95484.0,0.248]
[1746351079224,0.3686255,95485.0,95484.0,0.248]
[1746351079411,0.4486255,95485.0,95484.0,0.248]
[1746351079612,0.2392,95485.0,95484.0,0.248]
[1746351080325,0.2392,95485.0,95484.0,0.3446]
[1746351080625,0.2392,95485.0,95484.0,0.2146]
[1746351080822,0.2392,95485.0,95484.0,0.4540277]
[1746351081020,0.2392,95485.0,95484.0,0.5518277]
[1746351081321,0.147,95485.0,95484.0,0.5518277]
[1746351085126,0.14681634,95485.0,95484.0,0.5518277]
[1746351088825,0.14681634,95485.0,95484.0,0.39849362]
[1746351089127,0.14681634,95485.0,95484.0,0.51649362]
[1746351094225,0.23691634,95485.0,95484.0,0.51649362]
[1746351098441,0.23691634,95485.0,95484.0,0.56464248]
[1746351099638,0.1701,95485.0,95484.0,0.56464248]
[1746351106943,0.1701,95485.0,95484.0,0.43684248]
[1746351107147,0.1701,95485.0,95484.0,0.56684248]
[1746351107338,0.1701,95485.0,95484.0,0.50557656]
[1746351112945,0.1701,95485.0,95484.0,0.29614886]
[1746351113943,0.1701,95485.0,95484.0,0.16614886]
[1746351117758,0.1701,95485.0,95484.0,0.37557656]
[1746351118464,0.2201,95485.0,95484.0,0.37557656]
[1746351118667,0.2101,95485.0,95484.0,0.37557656]
[1746351118851,0.2101,95485.0,95484.0,0.16614886]
[1746351119359,0.2101,95485.0,95484.0,0.118]
[1746351120366,0.3097,95485.0,95484.0,0.118]
[1746351121064,0.3097,95485.0,95484.0,0.3274277]
[1746351121455,0.0996,95485.0,95484.0,0.6174277]
[1746351121657,0.0996,95485.0,95484.0,0.6074277]
[1746351121967,0.0015,95500.0,95494.0,0.2094058]
[1746351122265,0.0994,95499.0,95494.0,0.99639965]
[1746351122464,0.0994,95499.0,95494.0,1.10111965]
[1746351122868,0.0994,95499.0,95494.0,1.28411965]
[1746351124458,0.0015,95500.0,95496.0,0.05235]
[1746351124661,0.0015,95500.0,95499.0,0.2093948]
[1746351124662,0.1615,95500.0,95499.0,0.2093948]
[1746351124862,0.1615,95500.0,95499.0,0.53758865]
[1746351125057,0.1615,95500.0,95499.0,0.65558865]
[1746351125664,0.0015,95500.0,95499.0,0.6073948]
[1746351125867,0.0515,95500.0,95499.0,0.6073948]
[1746351126461,0.0015,95500.0,95499.0,0.76021495]
[1746351127267,0.0015,95500.0,95499.0,0.63021495]
[1746351128266,0.0015,95500.0,95499.0,0.4773948]
[1746351128671,0.0015,95500.0,95499.0,0.6073948]
[1746351129068,0.3608,95521.0,95518.0,0.2093532]
[1746351129274,0.46985739,95519.0,95518.0,0.3393532]
[1746351129475,0.46985739,95519.0,95518.0,0.4693532]
[1746351130173,0.73920839,95519.0,95518.0,0.118]
[1746351130476,0.85810839,95519.0,95518.0,0.118]
[1746351130679,0.2093867,95503.0,95500.0,0.4187]
[1746351130981,0.5503,95502.0,95500.0,0.4187]
[1746351131174,0.8803,95502.0,95500.0,0.5367]
[1746351131477,0.8803,95502.0,95500.0,0.7460922]
[1746351131678,0.8803,95502.0,95501.0,0.2093904]
[1746351132084,0.8303,95502.0,95501.0,0.3273904]
[1746351132775,0.3706,95502.0,95501.0,0.5613904]
[1746351132977,0.06612,95504.0,95503.0,0.209386]
[1746351133178,0.05,95504.0,95503.0,0.477386]
[1746351133383,0.05,95504.0,95503.0,0.607386]
[1746351133972,0.0971,95511.0,95510.0,0.2093707]
[1746351134173,0.2071,95511.0,95510.0,0.6073707]
[1746351136381,0.2071,95511.0,95510.0,0.3273707]
[1746351136581,0.2071,95511.0,95510.0,0.3573707]
[1746351137485,0.2071,95511.0,95510.0,0.4873707]
[1746351137880,0.2071,95511.0,95510.0,0.3573707]
[1746351138479,0.11,95511.0,95510.0,0.3573707]
[1746351138785,0.0964,95514.0,95513.0,0.2093641]
[1746351138981,0.4153,95514.0,95513.0,0.3393641]
[1746351139183,0.4153,95514.0,95513.0,0.4573641]
[1746351140779,0.3164,95514.0,95513.0,0.4573641]
[1746351143693,0.2764,95514.0,95513.0,0.4573641]
[1746351144482,0.2764,95514.0,95513.0,0.5873641]
[1746351144684,0.0964,95514.0,95513.0,0.5873641]
[1746351144987,0.2364,95514.0,95513.0,0.5873641]
[1746351145191,0.2364,95514.0,95513.0,0.4573641]
[1746351145983,0.2064,95514.0,95513.0,0.4573641]
[1746351146182,0.2164,95514.0,95513.0,0.4573641]
[1746351148279,0.2164,95514.0,95513.0,0.5873641]
[1746351149293,0.0964,95514.0,95513.0,0.5873641]
[1746351150498,0.0964,95514.0,95513.0,0.6829641]
[1746351150896,0.0964,95514.0,95513.0,0.5529641]
[1746351154684,0.0964,95514.0,95513.0,0.6829641]
[1746351156898,0.0964,95514.0,95513.0,0.5529641]
[1746351157897,0.0964,95514.0,95513.0,0.6829641]
[1746351158502,0.3608,95521.0,95520.0,0.2093488]
[1746351158704,0.5308,95521.0,95520.0,0.3593488]
[1746351159097,0.5308,95521.0,95520.0,0.4773488]
[1746351159698,0.5308,95521.0,95520.0,0.5700488]
[1746351160302,0.6276,95521.0,95520.0,0.5700488]
[1746351162206,0.6276,95521.0,95520.0,0.6633488]
[1746351163506,0.5308,95521.0,95520.0,0.8480368]
[1746351163692,0.34431009,95553.0,95527.0,0.0523333]
[1746351163693,0.00766059,95540.0,95527.0,0.0523333]
[1746351164001,0.34431009,95553.0,95527.0,0.0523333]
[1746351164002,0.1886,95546.0,95534.0,0.5701181]
[1746351164198,0.0938,95544.0,95536.0,0.2093137]
[1746351164397,0.0938,95544.0,95536.0,0.8601137]
[1746351164793,0.06854075,95537.0,95536.0,0.8601137]
[1746351164995,0.0938,95544.0,95543.0,0.2092984]
[1746351165200,0.3038,95544.0,95543.0,0.3592984]
[1746351165400,0.0938,95544.0,95543.0,0.4892984]
[1746351165606,0.1538,95544.0,95543.0,0.4892984]
[1746351165805,0.06,95544.0,95543.0,0.6454984]
[1746351166006,0.06,95544.0,95543.0,0.7754984]
[1746351166208,0.06,95544.0,95543.0,1.2542984]
[1746351166909,0.03777117,95546.0,95545.0,0.209294]
[1746351167109,0.03777117,95546.0,95545.0,0.489294]
[1746351167110,0.13,95546.0,95545.0,0.489294]
[1746351167413,0.0938,95549.0,95548.0,0.2092874]
[1746351167600,0.3038,95549.0,95548.0,0.8500874]
[1746351167801,0.3038,95549.0,95548.0,0.7200874]
[1746351167995,0.3038,95549.0,95548.0,0.8500874]
[1746351168200,0.0538101,95570.0,95553.0,0.2092765]
[1746351168201,0.0914,95554.0,95553.0,0.2092765]
[1746351168396,0.2,95554.0,95553.0,0.4892765]
[1746351168603,0.03291458,95556.0,95555.0,0.2092721]
[1746351168809,0.03291458,95556.0,95555.0,0.8600721]
[1746351169004,0.03291458,95556.0,95555.0,0.7300721]
[1746351169210,0.03291458,95556.0,95555.0,1.0435721]
[1746351169701,0.03291458,95556.0,95555.0,1.1735721]
[1746351170606,0.001,95556.0,95555.0,1.1735721]
[1746351170805,0.0914,95561.0,95560.0,0.2092611]
[1746351171010,0.0914,95561.0,95560.0,0.8300611]
[1746351171316,0.12355067,95561.0,95560.0,0.8180611]
[1746351171611,0.21355067,95561.0,95560.0,0.8180611]
[1746351174312,0.1814,95561.0,95560.0,0.9110611]
[1746351174509,0.00157038,95567.0,95560.0,0.8518]
[1746351174705,0.00157038,95567.0,95566.0,0.209248]
[1746351174906,0.00157038,95567.0,95566.0,0.489248]
[1746351175108,0.00157038,95567.0,95566.0,0.607248]
[1746351175308,0.00157038,95567.0,95566.0,0.665948]
[1746351175816,0.00157038,95567.0,95566.0,0.795948]
[1746351177005,0.03206817,95569.0,95568.0,0.2092436]
[1746351177205,0.0015,95570.0,95569.0,0.2092414]
[1746351177415,0.0715,95570.0,95569.0,0.5457414]
[1746351178201,0.0715,95570.0,95569.0,0.6737414]
[1746351178614,0.0715,95570.0,95569.0,0.6637414]
[1746351178919,0.0715,95570.0,95569.0,0.7937414]
[1746351179810,0.0961,95576.0,95575.0,0.2092283]
[1746351180010,0.25,95576.0,95575.0,0.3592283]
[1746351180207,0.3468,95576.0,95575.0,0.30348217]
[1746351180408,0.1168,95576.0,95575.0,0.53568217]
[1746351180609,0.2092,95576.0,95575.0,0.53568217]
[1746351180809,0.24046758,95576.0,95575.0,0.44138217]
[1746351181011,0.24046758,95576.0,95575.0,0.35348217]
[1746351181205,0.44969368,95576.0,95575.0,0.168]
[1746351181409,0.25046758,95576.0,95575.0,0.3772283]
[1746351181610,0.25046758,95576.0,95575.0,0.168]
[1746351182321,0.25046758,95576.0,95575.0,0.3772283]
[1746351182715,0.25046758,95576.0,95575.0,0.168]
[1746351183312,0.25046758,95576.0,95575.0,0.3772283]
[1746351185929,0.25046758,95576.0,95575.0,0.3272283]
[1746351186424,0.25046758,95576.0,95575.0,0.4772283]
[1746351186813,0.25046758,95576.0,95575.0,0.4672283]
[1746351187416,0.23046758,95576.0,95575.0,0.4672283]
[1746351187722,0.22046758,95576.0,95575.0,0.4672283]
[1746351187917,0.22046758,95576.0,95575.0,0.3272283]
[1746351188621,0.22046758,95576.0,95575.0,0.4772283]
[1746351191219,0.22046758,95576.0,95575.0,0.118]
[1746351191427,0.45969368,95576.0,95575.0,0.118]
[1746351192117,0.2092283,95575.0,95574.0,0.3608]
[1746351192315,0.06,95575.0,95574.0,0.3608]
[1746351192512,0.1801,95575.0,95574.0,0.5700305]
[1746351193023,0.0918,95575.0,95574.0,0.9009305]
[1746351193225,0.0918,95575.0,95574.0,1.0189305]
[1746351194318,0.03126758,95576.0,95575.0,0.2092283]
[1746351194518,0.096,95581.0,95580.0,0.2092174]
[1746351195022,0.096,95581.0,95580.0,0.3392174]
[1746351195724,0.22546,95581.0,95580.0,0.5620174]
[1746351197219,0.22546,95581.0,95580.0,0.3020174]
[1746351198127,0.22546,95581.0,95580.0,0.4200174]
[1746351200216,0.22546,95581.0,95580.0,0.5500174]
[1746351200419,0.12946,95581.0,95580.0,0.5500174]
[1746351200935,0.001,95586.0,95585.0,0.2092064]
[1746351201115,0.001,95586.0,95585.0,0.8180064]
[1746351201515,0.001,95586.0,95585.0,0.9480064]
[1746351201725,0.001,95586.0,95585.0,0.8691064]
[1746351201923,0.001,95586.0,95585.0,0.9991064]
[1746351202434,0.001,95586.0,95585.0,0.8691064]
[1746351202727,0.03337821,95586.0,95585.0,1.0091064]
[1746351202922,0.001,95586.0,95585.0,1.0091064]
[1746351203118,0.00156994,95590.0,95589.0,0.2091977]
[1746351203333,0.00156994,95590.0,95589.0,0.3691977]
[1746351203929,0.00156994,95590.0,95589.0,0.4585977]
[1746351204125,0.00156994,95590.0,95589.0,0.6740977]
[1746351204328,0.03368657,95590.0,95589.0,0.6740977]
[1746351204528,0.00156994,95590.0,95589.0,0.6440977]
[1746351207540,0.1,95600.0,95599.0,0.2091758]
[1746351207831,0.13171162,95600.0,95599.0,0.3391758]
[1746351208040,0.1,95600.0,95599.0,0.4691758]
[1746351208230,0.1,95600.0,95599.0,0.7816758]
[1746351209936,0.1,95600.0,95599.0,0.8316758]
[1746351210332,0.0966,95621.0,95615.0,0.2091408]
[1746351210532,0.1901,95621.0,95615.0,0.8299408]
[1746351210828,0.1901,95621.0,95615.0,0.6999408]
[1746351211029,0.1901,95621.0,95615.0,0.7561408]
[1746351211234,0.2091321,95619.0,95615.0,1.0341408]
[1746351211435,0.00770296,95619.0,95615.0,1.0141408]
[1746351211735,0.0966,95618.0,95615.0,0.8741408]
[1746351211929,0.1655549,95616.0,95615.0,0.8741408]
[1746351212129,0.4746935,95616.0,95615.0,0.6627408]
[1746351212531,0.5725935,95616.0,95615.0,0.6627408]
[1746351213040,0.3634549,95616.0,95615.0,0.6627408]
[1746351214936,0.5725935,95616.0,95615.0,0.4536]
[1746351215236,0.5725935,95616.0,95615.0,0.3608]
[1746351215436,0.5725935,95616.0,95615.0,0.5699408]
[1746351215636,0.23025907,95616.0,95615.0,0.5699408]
[1746351216323,0.32755907,95616.0,95615.0,0.5699408]
[1746351217837,0.53669767,95616.0,95615.0,0.5699408]
[1746351218738,0.32755907,95616.0,95615.0,0.5699408]
[1746351219333,0.32755907,95616.0,95615.0,0.3608]
[1746351219529,0.53669767,95616.0,95615.0,0.3608]
[1746351220343,0.53669767,95616.0,95615.0,0.2091408]
[1746351221342,0.22755907,95616.0,95615.0,0.2091408]
[1746351223235,0.22755907,95616.0,95615.0,0.4260408]
[1746351224035,0.22755907,95616.0,95615.0,0.5660408]
[1746351224340,0.22755907,95616.0,95615.0,0.4260408]
[1746351226239,0.03235907,95616.0,95615.0,0.4360408]
[1746351226443,0.03235907,95616.0,95615.0,0.4260408]
[1746351227037,0.03235907,95616.0,95615.0,0.5560408]
[1746351227231,0.001,95616.0,95615.0,0.6860408]
[1746351229345,0.001,95616.0,95615.0,0.5560408]
[1746351229549,0.02017781,95616.0,95615.0,0.5560408]
[1746351229847,0.001,95616.0,95615.0,0.5560408]
[1746351231447,0.01981749,95616.0,95615.0,0.5560408]
[1746351231748,0.001,95616.0,95615.0,0.5560408]
[1746351234753,0.0202269,95616.0,95615.0,0.5560408]
[1746351236446,0.1102269,95616.0,95615.0,0.3569]
[1746351236652,0.0402269,95616.0,95615.0,0.5660408]
[1746351236952,0.0202269,95616.0,95615.0,0.4671408]
[1746351237152,0.0202269,95616.0,95615.0,0.3491408]
[1746351238548,0.2958269,95616.0,95615.0,0.3491408]
[1746351239658,0.3258269,95616.0,95615.0,0.3491408]
[1746351239953,0.3258269,95616.0,95615.0,0.4420408]
[1746351240654,0.3258269,95616.0,95615.0,0.3020408]
[1746351241446,0.3258269,95616.0,95615.0,0.2091408]
[1746351243144,0.3258269,95616.0,95615.0,0.3491408]
[1746351243351,0.3258269,95616.0,95615.0,0.5433408]
[1746351243850,0.3258269,95616.0,95615.0,0.4033408]
[1746351244355,0.3258269,95616.0,95615.0,0.5333408]
[1746351244847,0.3258269,95616.0,95615.0,0.4033408]
[1746351245252,0.3258269,95616.0,95615.0,0.5633408]
[1746351245557,0.3258269,95616.0,95615.0,0.4033408]
[1746351245971,0.3258269,95616.0,95615.0,0.41883228]
[1746351246353,0.3258269,95616.0,95615.0,0.57883228]
[1746351246652,0.3258269,95616.0,95615.0,0.41883309]
[1746351247157,0.3258269,95616.0,95615.0,0.54883309]
[1746351247659,0.3258269,95616.0,95615.0,0.41883309]
[1746351247958,0.3258269,95616.0,95615.0,0.4033408]
[1746351248158,0.3258269,95616.0,95615.0,0.5433408]
[1746351248360,0.32603226,95616.0,95615.0,0.5433408]
[1746351248560,0.32603226,95616.0,95615.0,0.4033408]
[1746351248963,0.32603226,95616.0,95615.0,0.5433408]
[1746351249354,0.32603226,95616.0,95615.0,0.4033408]
[1746351249857,0.32603226,95616.0,95615.0,0.41885209]
[1746351250049,0.32603226,95616.0,95615.0,0.55885209]
[1746351250458,0.32603226,95616.0,95615.0,0.55885213]
[1746351250857,0.32603226,95616.0,95615.0,0.77965213]
[1746351251255,0.32603226,95616.0,95615.0,0.57885213]
[1746351251456,0.32603226,95616.0,95615.0,0.77965213]
[1746351252064,0.29603226,95616.0,95615.0,0.79965213]
[1746351252265,0.29603226,95616.0,95615.0,0.9041408]
[1746351252466,0.29603226,95616.0,95615.0,0.77967746]
[1746351252866,0.29603226,95616.0,95615.0,0.7641408]
[1746351253265,0.29603226,95616.0,95615.0,0.8941408]
[1746351253492,0.29603226,95616.0,95615.0,0.7641408]
[1746351254064,0.29603226,95616.0,95615.0,0.9041408]
[1746351254567,0.29603226,95616.0,95615.0,0.7641408]
[1746351254969,0.29603226,95616.0,95615.0,0.9041408]
[1746351255671,0.29603226,95616.0,95615.0,0.6651408]
[1746351256165,0.29603226,95616.0,95615.0,0.8051408]
[1746351256468,0.30603226,95616.0,95615.0,0.6651408]
[1746351256870,0.41263757,95616.0,95615.0,0.6651408]
[1746351257066,0.41263757,95616.0,95615.0,0.8151408]
[1746351257670,0.41263757,95616.0,95615.0,0.6651408]
[1746351260578,0.41263757,95616.0,95615.0,0.8251408]
[1746351261173,0.41263757,95616.0,95615.0,0.6651408]
[1746351261676,0.41263757,95616.0,95615.0,0.8051408]
[1746351261865,0.41263757,95616.0,95615.0,0.4443408]
[1746351262065,0.41263757,95616.0,95615.0,0.6651408]
[1746351262573,0.41263757,95616.0,95615.0,0.8251408]
[1746351263080,0.41263757,95616.0,95615.0,0.6651408]
[1746351263767,0.41263757,95616.0,95615.0,0.8051408]
[1746351263964,0.41263757,95616.0,95615.0,0.5699408]
[1746351264163,0.41263757,95616.0,95615.0,0.2091408]
[1746351264164,0.44263757,95616.0,95615.0,0.2091408]
[1746351265177,0.33603226,95616.0,95615.0,0.2091408]
[1746351265375,0.33603226,95616.0,95615.0,0.3054408]
[1746351273677,0.33603226,95616.0,95615.0,0.0963]
[1746351274185,0.33603226,95616.0,95615.0,0.3054408]
[1746351274383,0.2091583,95607.0,95595.0,1.5]
[1746351274581,0.2091561,95608.0,95607.0,0.0932]
[1746351274780,0.07,95608.0,95607.0,0.13]
[1746351274980,0.2791561,95608.0,95607.0,0.13]
[1746351275483,0.2791561,95608.0,95607.0,0.3391583]
[1746351280884,0.2791561,95608.0,95607.0,0.13]
[1746351281477,0.2791561,95608.0,95607.0,0.2274]
[1746351286397,0.4687561,95608.0,95607.0,0.2274]
[1746351286989,0.4687561,95608.0,95607.0,0.3213]
[1746351288793,0.3987561,95608.0,95607.0,0.3213]
[1746351290792,0.50532819,95608.0,95607.0,0.3213]
[1746351291985,0.50532819,95608.0,95607.0,0.1913]
[1746351293982,0.3987561,95608.0,95607.0,0.1913]
[1746351294390,0.4940561,95608.0,95607.0,0.1913]
[1746351297489,0.5040561,95608.0,95607.0,0.1913]
[1746351299992,0.3144561,95608.0,95607.0,0.1913]
[1746351300203,0.2191561,95608.0,95607.0,0.1913]
[1746351301097,0.3212561,95608.0,95607.0,0.1913]
[1746351303602,0.3112561,95608.0,95607.0,0.1913]
[1746351307405,0.2091714,95601.0,95600.0,0.0919]
[1746351307706,0.2391714,95601.0,95600.0,0.4510736]
[1746351308093,0.1962,95602.0,95600.0,0.5690736]
[1746351308298,0.2091656,95604.0,95600.0,0.4121933]
[1746351308496,0.2091678,95603.0,95602.0,0.2091684]
[1746351308705,0.2091678,95603.0,95602.0,0.3691684]
[1746351309105,0.2091678,95603.0,95602.0,0.4871684]
[1746351312211,0.12280795,95610.0,95602.0,0.278]
[1746351312512,0.2091647,95605.0,95603.0,0.3052663]
[1746351312713,0.2091647,95605.0,95604.0,0.096]
[1746351313111,0.2091647,95605.0,95604.0,0.214]
[1746351313313,0.2091647,95605.0,95604.0,0.5187648]
[1746351313516,0.3291647,95605.0,95604.0,0.5187648]
[1746351314716,0.4258647,95605.0,95604.0,0.118]
[1746351314917,0.5058647,95605.0,95604.0,0.118]
[1746351315219,0.2091698,95602.0,95600.0,0.209173]
[1746351315425,0.0967,95601.0,95600.0,0.3591736]
[1746351315609,0.3567,95601.0,95600.0,0.3591736]
[1746351316322,0.3567,95601.0,95600.0,0.4771736]
[1746351316928,0.3567,95601.0,95600.0,0.3271736]
[1746351318626,0.46337587,95601.0,95600.0,0.3271736]
[1746351321329,0.56297587,95601.0,95600.0,0.3271736]
[1746351321528,0.77214727,95601.0,95600.0,0.118]
[1746351322624,0.77214727,95601.0,95600.0,0.3271736]
[1746351325233,0.77214727,95601.0,95600.0,0.118]
[1746351326732,0.77232831,95601.0,95600.0,0.118]
[1746351329932,0.66565244,95601.0,95600.0,0.118]
[1746351330520,0.46268104,95601.0,95587.0,0.00156924]
[1746351330720,0.05628795,95597.0,95589.0,0.0522994]
[1746351330929,0.5175827,95596.0,95593.0,0.2091874]
[1746351331131,0.2091845,95595.0,95594.0,0.1032]
[1746351331434,0.4491845,95595.0,95594.0,0.4623867]
[1746351331627,0.6514845,95595.0,95594.0,0.4623867]
[1746351333836,0.6514845,95595.0,95594.0,0.8231867]
[1746351334134,0.4423,95595.0,95594.0,0.8231867]
[1746351334331,0.4323,95595.0,95594.0,0.8231867]